bitfinex/quotes_BTCUSD_20220731
["timestamp","ask_amount","ask_price","bid_price","bid_amount"]
[1659285463698,0.79463349,23779.0,23778.0,0.01364348]
[1659285464158,0.71463349,23779.0,23778.0,0.01364348]
[1659285464625,0.71115733,23779.0,23778.0,0.01364348]
[1659285464866,0.71115733,23779.0,23778.0,0.12064348]
[1659285465091,0.71115733,23779.0,23778.0,0.108]
[1659285466103,0.71115733,23779.0,23778.0,0.051]
[1659285466104,0.40725733,23779.0,23778.0,0.051]
[1659285466312,0.51233133,23783.0,23778.0,0.01364348]
[1659285466516,0.40725733,23783.0,23779.0,0.03154]
[1659285466714,0.51231733,23786.0,23779.0,0.53879733]
[1659285466943,0.40725733,23786.0,23781.0,0.1]
[1659285467143,0.40725733,23788.0,23782.0,0.03154]
[1659285467345,0.45725733,23788.0,23782.0,0.34418348]
[1659285467684,0.05,23788.0,23783.0,0.39287614]
[1659285467915,0.45725733,23789.0,23784.0,0.33153]
[1659285468139,0.105016,23793.0,23785.0,0.38023266]
[1659285468360,0.40725733,23792.0,23786.0,0.38153]
[1659285468579,0.40725733,23792.0,23786.0,0.43153]
[1659285468821,0.45725733,23792.0,23786.0,0.44417348]
[1659285469055,0.45725733,23792.0,23787.0,0.11264348]
[1659285470419,0.45725733,23792.0,23787.0,0.1]
[1659285470871,0.40725733,23794.0,23787.0,0.135]
[1659285471084,0.51227033,23794.0,23787.0,0.135]
[1659285471316,0.4070164,23793.0,23787.0,0.135]
[1659285471541,0.4070164,23793.0,23787.0,0.13619951]
[1659285471772,0.05,23791.0,23787.0,0.13619951]
[1659285471984,0.04184893,23790.0,23788.0,0.00149252]
[1659285472224,0.5120314,23793.0,23788.0,0.00149252]
[1659285472445,0.40725733,23789.0,23787.0,0.10119951]
[1659285472688,0.3039,23788.0,23787.0,0.00119951]
[1659285472928,0.45725733,23789.0,23787.0,0.00119951]
[1659285473247,0.75300626,23788.0,23787.0,0.00119951]
[1659285474160,0.71115733,23788.0,23787.0,0.00119951]
[1659285474377,0.70115733,23788.0,23787.0,0.00119951]
[1659285474798,0.78015733,23788.0,23787.0,0.00119951]
[1659285475229,0.82200626,23788.0,23787.0,0.00119951]
[1659285475489,0.81898214,23788.0,23787.0,0.00119951]
[1659285475722,0.77612516,23788.0,23786.0,0.3]
[1659285475944,0.40725733,23787.0,23786.0,0.3]
[1659285476165,0.40725733,23787.0,23786.0,0.30149252]
[1659285476394,0.105016,23793.0,23786.0,0.314136]
[1659285476621,0.105016,23793.0,23786.0,0.72589866]
[1659285476622,0.40725733,23792.0,23786.0,0.72589866]
[1659285477048,0.077,23787.0,23786.0,0.845666]
[1659285477275,0.077,23787.0,23786.0,0.895666]
[1659285477714,0.077,23787.0,23786.0,0.864136]
[1659285477945,0.51227733,23792.0,23786.0,0.814136]
[1659285478233,0.40725733,23791.0,23786.0,0.314136]
[1659285478452,0.40725733,23791.0,23786.0,0.30149252]
[1659285478912,0.45725733,23791.0,23786.0,0.30149252]
[1659285479163,0.40725733,23790.0,23786.0,0.30149252]
[1659285479393,0.51228133,23790.0,23786.0,0.30149252]
[1659285479625,0.40725733,23789.0,23786.0,0.30149252]
[1659285479842,0.45725733,23789.0,23786.0,0.30149252]
[1659285480064,0.45695338,23789.0,23786.0,0.30149252]
[1659285480311,0.45695338,23789.0,23786.0,0.30269298]
[1659285480545,0.05,23787.0,23786.0,0.30269298]
[1659285480895,0.64098138,23789.0,23786.0,0.30269298]
[1659285481215,0.53595338,23789.0,23786.0,0.30269298]
[1659285481422,0.48595338,23789.0,23786.0,0.30269298]
[1659285481647,0.53595338,23789.0,23786.0,0.30269298]
[1659285482094,0.05,23787.0,23786.0,0.30269298]
[1659285482317,0.40695338,23789.0,23786.0,0.30269298]
[1659285482563,0.45695338,23789.0,23786.0,0.30269298]
[1659285483716,0.105024,23790.0,23786.0,0.34719298]
[1659285484901,0.184024,23790.0,23786.0,0.34719298]
[1659285485348,0.05,23788.0,23786.0,0.34719298]
[1659285485576,0.44910626,23787.0,23786.0,0.00120046]
[1659285485816,0.45725733,23787.0,23786.0,0.00269298]
[1659285486032,0.05,23788.0,23786.0,0.00269298]
[1659285486257,0.40725733,23788.0,23786.0,0.00269298]
[1659285486685,0.47621513,23788.0,23786.0,0.00269298]
[1659285486908,0.05,23787.0,23786.0,0.30120046]
[1659285487128,0.47621513,23788.0,23786.0,0.30120046]
[1659285487812,0.40725733,23787.0,23786.0,0.30120046]
[1659285488783,0.48425733,23787.0,23786.0,0.30120046]
[1659285489676,0.077,23787.0,23786.0,0.34570046]
[1659285490142,0.105029,23789.0,23786.0,0.34570046]
[1659285490370,0.51228633,23789.0,23786.0,0.34570046]
[1659285490826,0.51228633,23789.0,23786.0,0.30120046]
[1659285491535,0.61731833,23789.0,23786.0,0.30120046]
[1659285491987,0.51228633,23789.0,23786.0,0.30269298]
[1659285492725,0.58728633,23789.0,23786.0,0.30120046]
[1659285492932,0.58728633,23789.0,23786.0,0.30269298]
[1659285493155,0.62913526,23789.0,23786.0,0.30120046]
[1659285494069,0.55413526,23789.0,23786.0,0.30120046]
[1659285494736,0.62813526,23789.0,23786.0,0.30120046]
[1659285495233,0.15,23787.0,23786.0,0.00120046]
[1659285495462,1.24138999,23787.0,23786.0,0.00120046]
[1659285496139,0.86115733,23787.0,23786.0,0.00120046]
[1659285496375,0.25191893,23789.0,23786.0,0.04719298]
[1659285496376,0.21007,23789.0,23786.0,0.04719298]
[1659285496638,0.71115733,23788.0,23786.0,0.34719298]
[1659285496869,0.072,23787.0,23786.0,0.34719298]
[1659285497328,0.072,23787.0,23786.0,0.30269298]
[1659285497558,0.072,23787.0,23786.0,0.30120046]
[1659285498024,0.40725733,23788.0,23786.0,0.30120046]
[1659285498260,0.45725733,23788.0,23786.0,0.30120046]
[1659285498482,0.3039,23787.0,23786.0,0.30120046]
[1659285498695,0.45725733,23788.0,23786.0,0.30120046]
[1659285498696,0.40725733,23788.0,23786.0,0.30120046]
[1659285498919,0.15,23787.0,23786.0,0.30120046]
[1659285499194,0.40725733,23787.0,23786.0,0.30120046]
[1659285499858,0.44910626,23787.0,23786.0,0.30120046]
[1659285500298,0.75300626,23787.0,23786.0,0.30120046]
[1659285500583,0.44910626,23787.0,23786.0,0.30120046]
[1659285500802,0.82400626,23787.0,23786.0,0.30120046]
[1659285502623,0.75300626,23787.0,23786.0,0.30120046]
[1659285502846,0.83200626,23787.0,23786.0,0.30120046]
[1659285503973,0.79015733,23787.0,23786.0,0.30120046]
[1659285504193,0.71115733,23787.0,23786.0,0.30120046]
[1659285504902,0.79015733,23787.0,23786.0,0.30120046]
[1659285506043,0.48625733,23787.0,23786.0,0.30269298]
[1659285506258,0.79015733,23787.0,23786.0,0.30269298]
[1659285506482,0.48625733,23787.0,23786.0,0.30120046]
[1659285506704,0.86915733,23787.0,23786.0,0.00120046]
[1659285506928,1.24938999,23787.0,23786.0,0.00120046]
[1659285507152,1.77391999,23787.0,23786.0,4.6e-07]
[1659285507394,1.77391999,23787.0,23778.0,0.01390182]
[1659285507395,0.05,23785.0,23778.0,0.01390182]
[1659285507630,0.40725733,23783.0,23779.0,0.00014509]
[1659285507843,0.5,23780.0,23779.0,0.00014509]
[1659285508078,1.21115733,23780.0,23779.0,0.00014509]
[1659285508406,1.21115733,23780.0,23778.0,0.01539434]
[1659285508407,1.17640933,23780.0,23778.0,0.01539434]
[1659285508605,0.86115733,23779.0,23778.0,0.01390182]
[1659285508821,0.96623233,23779.0,23778.0,0.01390182]
[1659285509752,0.55725733,23779.0,23778.0,0.01539434]
[1659285510417,0.59043798,23779.0,23778.0,0.01390182]
[1659285510635,0.59910626,23779.0,23778.0,0.01390182]
[1659285510866,0.67810626,23779.0,23778.0,0.01390182]
[1659285511097,0.67800172,23779.0,23778.0,0.01390182]
[1659285511757,0.63615279,23779.0,23778.0,0.01390182]
[1659285512001,0.55715279,23779.0,23778.0,0.01390182]
[1659285512744,0.63415279,23779.0,23778.0,0.01390182]
[1659285512995,0.93805279,23779.0,23777.0,0.0011]
[1659285513211,0.55715279,23778.0,23777.0,0.0011]
[1659285513446,0.55715279,23778.0,23777.0,0.01343887]
[1659285513667,0.55715279,23778.0,23777.0,0.0011]
[1659285514123,0.55715279,23778.0,23777.0,0.00259252]
[1659285514365,0.55715279,23778.0,23777.0,0.0011]
[1659285514804,0.63315279,23778.0,23777.0,0.0011]
[1659285516018,0.55715279,23778.0,23777.0,0.0011]
[1659285516717,0.93805279,23778.0,23777.0,0.0011]
[1659285517007,0.63415279,23778.0,23777.0,0.0011]
[1659285517453,0.077,23778.0,23777.0,0.0011]
[1659285517654,0.077,23778.0,23777.0,0.08264]
[1659285517822,0.077,23778.0,23777.0,0.3949692]
[1659285518053,0.077,23778.0,23777.0,0.52102995]
[1659285518385,0.077,23778.0,23777.0,1.38367343]
[1659285518656,0.48527566,23784.0,23778.0,0.105047]
[1659285518873,0.40725733,23783.0,23779.0,0.02100872]
[1659285519089,0.48527566,23784.0,23780.0,0.15149252]
[1659285519090,0.40725733,23784.0,23780.0,0.15149252]
[1659285519329,0.40725733,23784.0,23781.0,0.0210062]
[1659285519565,0.40725733,23784.0,23781.0,0.1760372]
[1659285519769,0.38023266,23787.0,23782.0,0.05]
[1659285519770,0.78748999,23787.0,23782.0,0.05]
[1659285520138,0.05,23786.0,23782.0,0.155027]
[1659285520358,0.42208159,23785.0,23781.0,0.35]
[1659285520587,0.51230933,23784.0,23781.0,0.35]
[1659285520809,0.40725733,23783.0,23782.0,0.00149252]
[1659285521036,0.40725733,23783.0,23781.0,0.35]
[1659285521266,0.40725733,23783.0,23780.0,0.45]
[1659285521267,0.05,23782.0,23780.0,0.45]
[1659285521489,0.38023266,23785.0,23782.0,0.35]
[1659285521723,0.40725733,23784.0,23783.0,0.00149252]
[1659285522430,0.40225733,23784.0,23783.0,0.00149252]
[1659285522646,0.105037,23786.0,23783.0,0.04599252]
[1659285522884,0.078,23784.0,23783.0,0.04599252]
[1659285524011,0.38023266,23788.0,23783.0,0.04599252]
[1659285524238,0.81618933,23787.0,23783.0,0.00149252]
[1659285524463,0.04184893,23786.0,23783.0,0.00149252]
[1659285524698,0.40725733,23787.0,23783.0,0.00149252]
[1659285524941,0.105041,23786.0,23783.0,0.00149252]
[1659285525193,0.14989546,23785.0,23783.0,0.00149252]
[1659285525430,0.14989546,23785.0,23783.0,0.00123645]
[1659285526105,0.14989546,23785.0,23780.0,0.65]
[1659285526332,0.105044,23784.0,23780.0,1.02826498]
[1659285526762,0.14989546,23785.0,23780.0,1.02826498]
[1659285526982,0.14989546,23785.0,23780.0,1.00725733]
[1659285527196,0.25494546,23785.0,23780.0,1.00725733]
[1659285527431,0.105043,23784.0,23780.0,1.05725733]
[1659285529037,0.105043,23784.0,23781.0,0.00123645]
[1659285529490,0.14989546,23785.0,23781.0,0.00123645]
[1659285529753,0.38023266,23786.0,23781.0,0.00123645]
[1659285529977,0.78748999,23786.0,23781.0,0.00123645]
[1659285530467,0.105041,23784.0,23781.0,0.00123645]
[1659285530688,0.40725733,23783.0,23782.0,0.00123645]
[1659285530930,0.40725733,23783.0,23780.0,0.45]
[1659285531144,0.51230533,23783.0,23780.0,0.45]
[1659285531918,0.51230533,23783.0,23781.0,0.00123645]
[1659285532785,0.58930533,23783.0,23781.0,0.00123645]
[1659285533898,0.58930533,23783.0,23780.0,0.45]
[1659285534120,0.51230533,23783.0,23780.0,0.45]
[1659285534816,0.58930533,23783.0,23781.0,0.00123645]
[1659285535249,0.59797361,23783.0,23781.0,0.00123645]
[1659285535723,0.48425733,23783.0,23781.0,0.00123645]
[1659285536172,0.40725733,23783.0,23781.0,0.00123645]
[1659285536620,0.45715279,23783.0,23781.0,0.1272786]
[1659285536860,0.53415279,23783.0,23781.0,0.1772786]
[1659285537081,0.53415279,23783.0,23781.0,0.0722436]
[1659285537293,0.57625778,23783.0,23780.0,0.45]
[1659285537511,0.48425733,23783.0,23781.0,0.35123645]
[1659285537715,0.53415279,23783.0,23782.0,0.3]
[1659285538055,0.077,23783.0,23782.0,1.28947828]
[1659285538289,1.016042,23790.0,23783.0,0.3]
[1659285538290,0.94204229,23790.0,23783.0,0.3]
[1659285538542,0.72235733,23789.0,23783.0,0.35]
[1659285538768,0.40725733,23788.0,23784.0,0.3]
[1659285539009,0.05,23787.0,23785.0,0.00123645]
[1659285539246,0.40725733,23786.0,23785.0,0.00123645]
[1659285540008,0.71115733,23786.0,23785.0,0.00123645]
[1659285540227,0.40725733,23786.0,23785.0,0.10625545]
[1659285540430,0.40725733,23786.0,23785.0,0.00123645]
[1659285540769,0.40725733,23786.0,23785.0,0.064]
[1659285540991,0.71115733,23786.0,23785.0,0.064]
[1659285541224,0.40725733,23786.0,23785.0,0.064]
[1659285541667,0.40725733,23786.0,23785.0,0.364]
[1659285542138,0.40725733,23786.0,23785.0,0.3]
[1659285542803,0.51228833,23787.0,23785.0,0.066]
[1659285543017,0.40725733,23787.0,23785.0,0.06723645]
[1659285543529,0.40725733,23787.0,23785.0,0.36723645]
[1659285543751,0.40725733,23787.0,23785.0,0.49326063]
[1659285543970,0.40725733,23787.0,23785.0,0.63729763]
[1659285544209,0.40725733,23787.0,23785.0,0.32224063]
[1659285544432,0.40725733,23787.0,23786.0,0.155017]
[1659285544717,0.40725733,23787.0,23786.0,0.455017]
[1659285545419,0.40725733,23787.0,23786.0,0.35]
[1659285545646,0.44069404,23787.0,23786.0,0.35]
[1659285545877,0.40725733,23787.0,23785.0,0.419]
[1659285546093,0.40725733,23787.0,23785.0,0.00123645]
[1659285546554,0.40725733,23787.0,23785.0,0.10625745]
[1659285546778,0.40725733,23787.0,23785.0,0.07023645]
[1659285547027,0.40725733,23787.0,23785.0,0.17525645]
[1659285547293,0.51228533,23787.0,23785.0,0.07023645]
[1659285547519,0.51228533,23787.0,23785.0,0.37023645]
[1659285548447,0.51228533,23787.0,23785.0,0.07023645]
[1659285548675,0.40725733,23787.0,23785.0,0.00123645]
[1659285548898,0.40725733,23787.0,23785.0,0.07023645]
[1659285549611,0.40725733,23787.0,23785.0,0.17525645]
[1659285549840,0.40225733,23787.0,23785.0,0.17525645]
[1659285550078,0.40225733,23787.0,23785.0,0.00123645]
[1659285550535,0.50728833,23787.0,23785.0,0.00123645]
[1659285550790,0.50728833,23787.0,23785.0,0.07023645]
[1659285550981,0.40225733,23787.0,23785.0,0.37023645]
[1659285551942,0.39725733,23787.0,23785.0,0.37023645]
[1659285552170,0.39725733,23787.0,23785.0,0.07023645]
[1659285552661,0.39725733,23787.0,23785.0,0.10625745]
[1659285552891,0.39725733,23787.0,23785.0,0.06623645]
[1659285553342,0.60732333,23787.0,23785.0,0.06623645]
[1659285553791,0.50228533,23787.0,23785.0,0.06623645]
[1659285554008,0.50228533,23787.0,23785.0,0.00123645]
[1659285554226,0.54439032,23787.0,23784.0,0.0128306]
[1659285554460,0.50228533,23787.0,23785.0,0.00123645]
[1659285554972,0.50228533,23787.0,23785.0,0.06623645]
[1659285555886,0.39725733,23787.0,23785.0,0.06623645]
[1659285556107,0.39725733,23787.0,23785.0,0.00123645]
[1659285556350,0.50228633,23787.0,23785.0,0.30123645]
[1659285556583,0.54439132,23787.0,23785.0,0.30123645]
[1659285556810,0.50228633,23787.0,23785.0,0.36623645]
[1659285557265,0.50228633,23787.0,23785.0,0.365]
[1659285557530,0.50228633,23787.0,23785.0,0.065]
[1659285557761,0.35722499,23786.0,23785.0,0.065]
[1659285558008,0.76448232,23786.0,23785.0,0.065]
[1659285558232,1.20496532,23786.0,23783.0,0.01254643]
[1659285558472,0.14989546,23784.0,23783.0,0.01254643]
[1659285558701,0.105061,23783.0,23779.0,0.65413088]
[1659285558942,0.40725733,23782.0,23780.0,0.00123645]
[1659285559400,0.40725733,23783.0,23780.0,0.00123645]
[1659285559632,0.45715279,23783.0,23780.0,0.00123645]
[1659285559859,0.45715279,23783.0,23779.0,0.67500876]
[1659285560119,0.105052,23782.0,23780.0,0.00123645]
[1659285560344,0.105052,23782.0,23780.0,0.30123645]
[1659285560570,0.105052,23782.0,23780.0,0.3]
[1659285560794,0.105052,23782.0,23780.0,0.355]
[1659285561023,0.45715279,23783.0,23780.0,0.355]
[1659285561269,0.45715279,23783.0,23781.0,0.00123645]
[1659285561505,0.51230333,23783.0,23781.0,0.00123645]
[1659285561966,0.55440832,23783.0,23780.0,0.355]
[1659285562735,0.55440832,23783.0,23780.0,0.3]
[1659285562961,0.55440832,23783.0,23780.0,0.358]
[1659285562962,0.51231233,23782.0,23780.0,0.358]
[1659285563181,0.40725733,23781.0,23780.0,0.358]
[1659285563407,0.40725733,23781.0,23780.0,0.35923645]
[1659285563624,0.40725733,23781.0,23780.0,0.358]
[1659285564302,0.40725733,23781.0,23780.0,0.3]
[1659285564517,0.51231933,23781.0,23780.0,0.3]
[1659285564759,0.40725733,23781.0,23780.0,0.353]
[1659285565675,0.51232133,23781.0,23780.0,0.353]
[1659285566124,0.00215593,23781.0,23780.0,0.3]
[1659285566848,0.00215593,23781.0,23780.0,0.371]
[1659285568007,0.00215593,23781.0,23780.0,0.3]
[1659285568706,0.0029057,23781.0,23780.0,0.70725733]
[1659285568929,0.0029057,23781.0,23780.0,1.21286523]
[1659285569157,0.0029057,23781.0,23780.0,0.83025733]
[1659285569380,0.0029057,23781.0,23780.0,1.24290081]
[1659285569604,0.0029057,23781.0,23780.0,1.27444081]
[1659285570088,0.0029057,23781.0,23780.0,1.20144081]
[1659285570534,0.0029057,23781.0,23780.0,0.70725733]
[1659285570768,0.0029057,23781.0,23780.0,0.38]
[1659285571215,0.0029057,23781.0,23780.0,0.43]
[1659285572130,0.0029057,23781.0,23780.0,0.35]
[1659285572773,0.0029057,23781.0,23780.0,0.421]
[1659285573694,0.0029057,23781.0,23780.0,0.371]
[1659285573944,0.00284513,23781.0,23780.0,0.371]
[1659285574205,0.00284513,23781.0,23780.0,0.3]
[1659285574914,0.00500106,23781.0,23780.0,0.371]
[1659285576128,0.00500106,23781.0,23780.0,0.3]
[1659285576780,0.00500106,23781.0,23780.0,0.371]
[1659285578183,0.00500106,23781.0,23780.0,0.3]
[1659285578857,0.00500106,23781.0,23780.0,0.371]
[1659285580005,0.00500106,23781.0,23780.0,0.3]
[1659285580921,0.00500106,23781.0,23780.0,0.371]
[1659285582095,0.00500106,23781.0,23780.0,0.3]
[1659285582762,0.00500106,23781.0,23780.0,0.375]
[1659285583459,0.41225839,23781.0,23780.0,0.375]
[1659285583680,0.51732239,23781.0,23780.0,0.375]
[1659285584117,0.51732239,23781.0,23780.0,0.3]
[1659285584337,0.41225839,23781.0,23780.0,0.3]
[1659285584592,0.00500106,23781.0,23780.0,0.3]
[1659285584809,0.00500106,23781.0,23780.0,0.38]
[1659285586224,0.00500106,23781.0,23780.0,0.3]
[1659285586682,0.00500106,23781.0,23780.0,0.372]
[1659285588034,0.00500106,23781.0,23780.0,0.3]
[1659285588762,0.00500106,23781.0,23780.0,0.372]
[1659285590113,0.00500106,23781.0,23780.0,0.3]
[1659285590563,0.04710605,23781.0,23780.0,0.3]
[1659285590789,0.00500106,23781.0,23780.0,0.3]
[1659285591017,0.00500106,23781.0,23780.0,0.378]
[1659285591680,0.00474899,23781.0,23780.0,0.378]
[1659285592115,0.00474899,23781.0,23780.0,0.3]
[1659285592789,0.00474899,23781.0,23780.0,0.378]
[1659285594155,0.00474899,23781.0,23780.0,0.3]
[1659285594835,0.00474899,23781.0,23780.0,0.378]
[1659285595991,0.00721943,23781.0,23780.0,0.37923645]
[1659285596304,0.00721943,23781.0,23780.0,0.30123645]
[1659285596529,0.00721943,23781.0,23780.0,0.3]
[1659285596752,0.00721943,23781.0,23780.0,0.378]
[1659285596988,0.00823959,23781.0,23780.0,0.37923645]
[1659285598569,0.00823959,23781.0,23780.0,0.3]
[1659285598788,0.00823959,23781.0,23780.0,0.378]
[1659285600207,0.00823959,23781.0,23780.0,0.3]
[1659285600882,0.00823959,23781.0,23780.0,0.38]
[1659285602043,0.00823959,23781.0,23780.0,0.3]
[1659285602742,0.00823959,23781.0,23780.0,0.367]
[1659285602953,0.41549692,23781.0,23780.0,0.367]
[1659285604167,0.41549692,23781.0,23780.0,0.3]
[1659285604401,0.52055992,23781.0,23780.0,0.3]
[1659285604876,0.41549692,23781.0,23780.0,0.37]
[1659285605988,0.45760191,23781.0,23780.0,0.37]
[1659285606214,0.41549692,23781.0,23780.0,0.3]
[1659285606440,0.00823959,23781.0,23780.0,0.3]
[1659285606902,0.00823959,23781.0,23780.0,0.365]
[1659285607853,0.00576915,23781.0,23780.0,0.365]
[1659285608085,0.00576915,23781.0,23780.0,0.3]
[1659285608739,0.00576915,23781.0,23780.0,0.38]
[1659285610119,0.00576915,23781.0,23780.0,0.3]
[1659285610776,0.00576915,23781.0,23780.0,0.38]
[1659285610995,0.00848663,23781.0,23780.0,0.38]
[1659285612086,0.10163483,23783.0,23780.0,0.29657568]
[1659285612310,0.6977489,23785.0,23780.0,0.29657568]
[1659285612311,0.51160713,23782.0,23780.0,0.29657568]
[1659285612796,0.51160713,23782.0,23780.0,0.36557568]
[1659285613018,0.61666513,23782.0,23780.0,0.069]
[1659285613260,0.63756736,23781.0,23780.0,0.069]
[1659285613493,1.39082968,23781.0,23780.0,0.069]
[1659285613703,1.396653,23781.0,23780.0,0.069]
[1659285613947,1.04289546,23780.0,23779.0,0.29316]
[1659285614177,2.21933097,23780.0,23779.0,0.03615]
[1659285614409,2.21933097,23780.0,23777.0,0.0011]
[1659285614410,0.443,23778.0,23777.0,0.0011]
[1659285614645,1.6115405,23778.0,23777.0,0.0011]
[1659285615416,1.6615405,23778.0,23777.0,0.0011]
[1659285616770,1.6705405,23778.0,23777.0,0.0731]
[1659285618130,1.6615405,23778.0,23777.0,0.0011]
[1659285618573,1.6300005,23778.0,23777.0,0.0011]
[1659285618799,1.7090005,23778.0,23777.0,0.0011]
[1659285619083,1.7405405,23778.0,23777.0,0.0011]
[1659285619332,1.74354078,23778.0,23777.0,0.0011]
[1659285620683,1.66454078,23778.0,23777.0,0.0011]
[1659285620901,1.74354078,23778.0,23777.0,0.0011]
[1659285622056,1.66454078,23778.0,23777.0,0.0011]
[1659285622734,1.74354078,23778.0,23777.0,0.0011]
[1659285623656,1.71200078,23778.0,23777.0,0.0011]
[1659285624118,1.63300078,23778.0,23777.0,0.0011]
[1659285624792,1.71200078,23778.0,23777.0,0.0011]
[1659285625225,1.3282626,23778.0,23777.0,0.0011]
[1659285626186,1.2782626,23778.0,23777.0,0.0011]
[1659285626398,1.1992626,23778.0,23777.0,0.0011]
[1659285626865,1.2782626,23778.0,23777.0,0.0011]
[1659285628303,1.1992626,23778.0,23777.0,0.0011]
[1659285628769,1.2782626,23778.0,23777.0,0.0011]
[1659285630126,1.1992626,23778.0,23777.0,0.0011]
[1659285630878,1.2782626,23778.0,23777.0,0.0011]
[1659285632048,1.1992626,23778.0,23777.0,0.0011]
[1659285632696,1.2782626,23778.0,23777.0,0.0011]
[1659285634080,1.1992626,23778.0,23777.0,0.0011]
[1659285634801,1.2782626,23778.0,23777.0,0.0011]
[1659285636153,1.1992626,23778.0,23777.0,0.0011]
[1659285636803,1.2782626,23778.0,23777.0,0.0011]
[1659285638136,1.19918369,23778.0,23777.0,0.0011]
[1659285638879,1.27818369,23778.0,23777.0,0.0011]
[1659285639692,1.66192187,23778.0,23777.0,0.0011]
[1659285639925,1.58292187,23778.0,23777.0,0.0011]
[1659285640728,1.27818369,23778.0,23777.0,0.0011]
[1659285641907,1.19918369,23778.0,23777.0,0.0011]
[1659285642819,1.27818369,23778.0,23777.0,0.0011]
[1659285644628,1.19918369,23778.0,23777.0,0.0011]
[1659285644864,1.27818369,23778.0,23777.0,0.0011]
[1659285645976,1.19918369,23778.0,23777.0,0.0011]
[1659285646306,0.7140787,23778.0,23777.0,0.0011]
[1659285646785,0.7930787,23778.0,23777.0,0.0011]
[1659285648163,0.7140787,23778.0,23777.0,0.0011]
[1659285648893,0.7930787,23778.0,23777.0,0.0011]
[1659285649128,0.7930787,23778.0,23777.0,0.02211277]
[1659285649577,0.4891787,23778.0,23777.0,0.02211277]
[1659285649785,0.4891787,23778.0,23777.0,0.03483094]
[1659285650233,0.45228369,23778.0,23777.0,0.01381817]
[1659285650491,0.75618369,23778.0,23777.0,0.01381817]
[1659285650707,0.75618369,23778.0,23777.0,0.07181817]
[1659285652074,0.75618369,23778.0,23777.0,0.01381817]
[1659285652753,0.75618369,23778.0,23777.0,0.07181817]
[1659285652971,0.75618369,23778.0,23777.0,0.12181817]
[1659285654077,0.75618369,23778.0,23777.0,0.06381817]
[1659285654327,0.75618369,23778.0,23777.0,0.01381817]
[1659285654770,0.76018369,23778.0,23777.0,0.07581817]
[1659285655227,0.76018369,23778.0,23777.0,0.12581817]
[1659285655452,0.76018369,23778.0,23777.0,0.07581817]
[1659285655900,0.76018369,23778.0,23777.0,0.12581817]
[1659285656123,0.76018369,23778.0,23777.0,0.07581817]
[1659285656594,0.75618369,23778.0,23777.0,0.01381817]
[1659285656815,0.83518369,23778.0,23777.0,0.01381817]
[1659285657887,0.7930787,23778.0,23777.0,0.01381817]
[1659285658106,0.7140787,23778.0,23777.0,0.01381817]
[1659285658776,0.7930787,23778.0,23777.0,0.01381817]
[1659285660141,0.7140787,23778.0,23777.0,0.01381817]
[1659285660610,0.71397226,23778.0,23777.0,0.01381817]
[1659285660824,0.79297226,23778.0,23777.0,0.01381817]
[1659285661270,0.83507725,23778.0,23777.0,0.01381817]
[1659285661997,0.75607725,23778.0,23777.0,0.01381817]
[1659285662863,0.83407725,23778.0,23777.0,0.01381817]
[1659285663484,0.83407725,23778.0,23777.0,0.0011]
[1659285664040,0.75607725,23778.0,23777.0,0.0011]
[1659285664698,0.83407725,23778.0,23777.0,0.0011]
[1659285665642,0.83407725,23778.0,23777.0,0.00098919]
[1659285666080,0.90607725,23778.0,23771.0,1.62892198]
[1659285666313,0.90607725,23778.0,23771.0,1.78400898]
[1659285666314,1.35307033,23777.0,23771.0,1.78400898]
[1659285666559,0.51234133,23776.0,23772.0,0.12609761]
[1659285666796,0.40725733,23775.0,23772.0,0.07101561]
[1659285667041,0.40725733,23775.0,23773.0,0.00123645]
[1659285668118,0.51234033,23775.0,23773.0,0.00123645]
[1659285668334,0.40725733,23774.0,23773.0,0.00123645]
[1659285668789,0.40725733,23774.0,23773.0,0.12923645]
[1659285670059,0.40725733,23774.0,23773.0,0.05123645]
[1659285670274,0.40725733,23774.0,23773.0,0.00123645]
[1659285670444,0.40725733,23774.0,23772.0,0.35]
[1659285670861,0.40725733,23774.0,23773.0,0.062]
[1659285671527,0.72254633,23774.0,23773.0,0.062]
[1659285672191,0.72254633,23774.0,23772.0,0.35]
[1659285672860,1.14294633,23774.0,23773.0,0.051]
[1659285673046,1.14294633,23774.0,23773.0,0.05171729]
[1659285673191,0.72254633,23774.0,23773.0,0.05171729]
[1659285673664,0.51235333,23774.0,23773.0,0.05171729]
[1659285674056,0.72254033,23774.0,23773.0,0.00071729]
[1659285674286,0.72770477,23774.0,23773.0,0.00071729]
[1659285674707,0.41242177,23774.0,23773.0,0.07871729]
[1659285675879,0.41242177,23774.0,23773.0,0.06371729]
[1659285676089,0.41242177,23774.0,23772.0,0.35123645]
[1659285676295,0.41242177,23774.0,23772.0,0.66647845]
[1659285676718,0.41242177,23774.0,23772.0,0.53331845]
[1659285676924,0.41242177,23774.0,23772.0,0.42823645]
[1659285677246,0.41242177,23774.0,23772.0,0.53331845]
[1659285677477,0.41242177,23774.0,23772.0,0.74347645]
[1659285677909,0.41242177,23774.0,23772.0,0.66647645]
[1659285678125,0.41242177,23774.0,23772.0,0.05]
[1659285678362,0.45452676,23774.0,23771.0,1.38621492]
[1659285678587,0.105092,23773.0,23771.0,0.83905137]
[1659285678790,0.105092,23773.0,23772.0,0.127]
[1659285679042,0.00286849,23773.0,23772.0,0.127]
[1659285679499,0.00286849,23773.0,23772.0,0.427]
[1659285680214,0.00286849,23773.0,23772.0,0.35]
[1659285680895,0.00286849,23773.0,23772.0,0.429]
[1659285682207,0.00286849,23773.0,23772.0,0.35]
[1659285682434,0.01153677,23773.0,23772.0,0.35]
[1659285682648,0.00286849,23773.0,23772.0,0.35]
[1659285682872,0.00286849,23773.0,23772.0,0.429]
[1659285684180,0.00286849,23773.0,23772.0,0.35]
[1659285684708,0.00286849,23773.0,23772.0,0.429]
[1659285686620,0.00286849,23773.0,23772.0,0.35]
[1659285686811,0.00286849,23773.0,23772.0,0.429]
[1659285688110,0.00286849,23773.0,23772.0,0.35]
[1659285688752,0.00286849,23773.0,23772.0,0.429]
[1659285690038,0.00286849,23773.0,23772.0,0.35]
[1659285690469,0.40896034,23774.0,23772.0,0.35]
[1659285690687,0.00133268,23773.0,23772.0,0.429]
[1659285691143,0.40686627,23774.0,23772.0,0.849287]
[1659285691367,0.40686627,23774.0,23773.0,0.315219]
[1659285691588,0.41210355,23774.0,23773.0,0.3]